{"text_format":"3","workbook":"xlsx","n_sheets":4,"sheets":["Biudžeto apžvalga","Biudžeto suvestinė","Mėnesio išlaidos","Papildomi duomenys"],"not_rendered":{"charts":1,"images":4,"defined_names":7,"pivot_tables":2},"read":"whole","date_system":"1900"}

{"sheet":"Biudžeto apžvalga","index":0,"n_rows":12,"n_cols":8,"rows_kept":12,"merged":[[1,1,1,2],[2,1,2,2],[3,1,3,2],[4,1,4,2]]}
[{"$nulls":7}," "]
[null,"Balansas"]
[null,"Numatomas balansas",null,{"$f":"Planuojamos_pajamos-Planuojamos_išlaidos","v":{"v":1585,"d":"1,585 EUR"}},null,"Numatomas balansas atėmus išlaidas"]
[null,"Faktinis balansas ",null,{"$f":"Faktinės_pajamos-Faktinės_išlaidos","v":{"v":1740,"d":"1,740 EUR"}},null,"Faktinis balansas atėmus išlaidas"]
[null,"Skirtumas",null,{"$f":"D4-D3","v":{"v":155,"d":"155 EUR"}},null,"Faktinis balansas atėmus numatomą balansą"]
[null,"Pajamos",{"$nulls":3},"Išlaidos"]
[null,null,"Numatomas","Faktinis",null,"Numatomas","Faktinis"]
[null,"1 pajamos",{"v":6000,"d":"6,000 EUR"},{"v":5800,"d":"5,800 EUR"},null,{"$f":"SUM(Mėnesio_išlaidų_lentelė[Numatomos išlaidos])","v":{"v":7915,"d":"7,915 EUR"}},{"$f":"SUM(Mėnesio_išlaidų_lentelė[Faktinės išlaidos])","v":{"v":7860,"d":"7,860 EUR"}}]
[null,"2 pajamos",{"v":1000,"d":"1,000 EUR"},{"v":2300,"d":"2,300 EUR"}]
[null,"Papildomos pajamos",{"v":2500,"d":"2,500 EUR"},{"v":1500,"d":"1,500 EUR"}]
[null,"Pajamų suma",{"$f":"SUM(C8:C10)","v":{"v":9500,"d":"9,500 EUR"}},{"$f":"SUM(D8:D10)","v":{"v":9600,"d":"9,600 EUR"}}]
[null,"Faktinių išlaidų išskaidymas"]

{"sheet":"Biudžeto suvestinė","index":1,"n_rows":41,"n_cols":7,"rows_kept":41}
[null,"Biudžeto suvestinė",{"$nulls":4}," "]
[]
[null,"Kategorijos","Numatomos išlaidos ","Faktinės išlaidos ","Skirtumas "]
[null,"Vaikai",{"v":140,"d":"140 EUR"},{"v":140,"d":"140 EUR"},{"v":0,"d":"0 EUR"}]
[null,"Užklasinė veikla",{"v":40,"d":"40 EUR"},{"v":40,"d":"40 EUR"},{"v":0,"d":"0 EUR"}]
[null,"Medicininės išlaidos",null,null,{"v":0,"d":"0 EUR"}]
[null,"Mokykliniai reikmenys",null,null,{"v":0,"d":"0 EUR"}]
[null,"Mokymo įstaigos mokestis",{"v":100,"d":"100 EUR"},{"v":100,"d":"100 EUR"},{"v":0,"d":"0 EUR"}]
[]
[null,"Pramogos",{"v":400,"d":"400 EUR"},{"v":358,"d":"358 EUR"},{"v":42,"d":"42 EUR"}]
[null,"Koncertai",{"v":50,"d":"50 EUR"},{"v":40,"d":"40 EUR"},{"v":10,"d":"10 EUR"}]
[null,"Teatras",{"v":200,"d":"200 EUR"},{"v":150,"d":"150 EUR"},{"v":50,"d":"50 EUR"}]
[null,"Filmai",{"v":50,"d":"50 EUR"},{"v":28,"d":"28 EUR"},{"v":22,"d":"22 EUR"}]
[null,"Muzika (CD, atsisiuntimai ir t.t.)",{"v":50,"d":"50 EUR"},{"v":30,"d":"30 EUR"},{"v":20,"d":"20 EUR"}]
[null,"Sporto renginiai",{"v":0,"d":"0 EUR"},{"v":40,"d":"40 EUR"},{"v":-40,"d":"-40 EUR"}]
[null,"Vaizdo įrašai / DVD (įsigijimas)",{"v":20,"d":"20 EUR"},{"v":50,"d":"50 EUR"},{"v":-30,"d":"-30 EUR"}]
[null,"Vaizdo įrašai / DVD (nuoma)",{"v":30,"d":"30 EUR"},{"v":20,"d":"20 EUR"},{"v":10,"d":"10 EUR"}]
[]
[null,"Maistas",{"v":1100,"d":"1,100 EUR"},{"v":1320,"d":"1,320 EUR"},{"v":-220,"d":"-220 EUR"}]
[]
[null,"Dovanos ir labdara",{"v":100,"d":"100 EUR"},{"v":125,"d":"125 EUR"},{"v":-25,"d":"-25 EUR"}]
[]
[null,"Būstas",{"v":2830,"d":"2,830 EUR"},{"v":2702,"d":"2,702 EUR"},{"v":-72,"d":"-72 EUR"}]
[]
[null,"Draudimas",{"v":900,"d":"900 EUR"},{"v":900,"d":"900 EUR"},{"v":0,"d":"0 EUR"}]
[]
[null,"Paskolos",{"v":200,"d":"200 EUR"},{"v":200,"d":"200 EUR"},{"v":0,"d":"0 EUR"}]
[]
[null,"Asmens priežiūra",{"v":150,"d":"150 EUR"},{"v":140,"d":"140 EUR"},{"v":10,"d":"10 EUR"}]
[]
[null,"Augintiniai",{"v":170,"d":"170 EUR"},{"v":100,"d":"100 EUR"},{"v":70,"d":"70 EUR"}]
[]
[null,"Mokesčiai",{"v":300,"d":"300 EUR"},{"v":300,"d":"300 EUR"},{"v":0,"d":"0 EUR"}]
[]
[null,"Transportas",{"v":1425,"d":"1,425 EUR"},{"v":1375,"d":"1,375 EUR"},{"v":50,"d":"50 EUR"}]
[]
[null,"Santaupos",{"v":200,"d":"200 EUR"},{"v":200,"d":"200 EUR"},{"v":0,"d":"0 EUR"}]
[null,"Investicijų sąskaita",{"v":200,"d":"200 EUR"},{"v":200,"d":"200 EUR"},{"v":0,"d":"0 EUR"}]
[null,"Pensijos sąskaita",null,null,{"v":0,"d":"0 EUR"}]
[]
[null,"Grand Total",{"v":7915,"d":"7,915 EUR"},{"v":7860,"d":"7,860 EUR"},{"v":-145,"d":"-145 EUR"}]

{"sheet":"Mėnesio išlaidos","index":2,"n_rows":61,"n_cols":8,"rows_kept":61}
[{"$nulls":7}," "]
[null,"Aprašas","Kategorija","Numatomos išlaidos","Faktinės išlaidos","Skirtumas","Faktinių išlaidų apžvalga"]
[null,"Užklasinė veikla","Vaikai",{"v":40,"d":"40 EUR"},{"v":40,"d":"40 EUR"},{"$f":"IF(OR(Mėnesio_išlaidų_lentelė[[#This Row],[Numatomos išlaidos]]=\"\",Mėnesio_išlaidų_lentelė[[#This Row],[Faktinės išlaidos]]=\"\"),\"\",Mėnesio_išlaidų_lentelė[[#This Row],[Numatomos išlaidos]]-Mėnesio_išlaidų_lentelė[[#This Row],[Faktinės išlaidos]])","v":{"v":0,"d":"0 EUR"}},{"$f":"Mėnesio_išlaidų_lentelė[[#This Row],[Faktinės išlaidos]]","v":40}]
[null,"Medicininės išlaidos","Vaikai",null,null,{"$f":"IF(OR(Mėnesio_išlaidų_lentelė[[#This Row],[Numatomos išlaidos]]=\"\",Mėnesio_išlaidų_lentelė[[#This Row],[Faktinės išlaidos]]=\"\"),\"\",Mėnesio_išlaidų_lentelė[[#This Row],[Numatomos išlaidos]]-Mėnesio_išlaidų_lentelė[[#This Row],[Faktinės išlaidos]])","v":""},{"$f":"Mėnesio_išlaidų_lentelė[[#This Row],[Faktinės išlaidos]]","v":0}]
[null,"Mokykliniai reikmenys","Vaikai",null,null,{"$f":"IF(OR(Mėnesio_išlaidų_lentelė[[#This Row],[Numatomos išlaidos]]=\"\",Mėnesio_išlaidų_lentelė[[#This Row],[Faktinės išlaidos]]=\"\"),\"\",Mėnesio_išlaidų_lentelė[[#This Row],[Numatomos išlaidos]]-Mėnesio_išlaidų_lentelė[[#This Row],[Faktinės išlaidos]])","v":""},{"$f":"Mėnesio_išlaidų_lentelė[[#This Row],[Faktinės išlaidos]]","v":0}]
[null,"Mokymo įstaigos mokestis","Vaikai",{"v":100,"d":"100 EUR"},{"v":100,"d":"100 EUR"},{"$f":"IF(OR(Mėnesio_išlaidų_lentelė[[#This Row],[Numatomos išlaidos]]=\"\",Mėnesio_išlaidų_lentelė[[#This Row],[Faktinės išlaidos]]=\"\"),\"\",Mėnesio_išlaidų_lentelė[[#This Row],[Numatomos išlaidos]]-Mėnesio_išlaidų_lentelė[[#This Row],[Faktinės išlaidos]])","v":{"v":0,"d":"0 EUR"}},{"$f":"Mėnesio_išlaidų_lentelė[[#This Row],[Faktinės išlaidos]]","v":100}]
[null,"Koncertai","Pramogos",{"v":50,"d":"50 EUR"},{"v":40,"d":"40 EUR"},{"$f":"IF(OR(Mėnesio_išlaidų_lentelė[[#This Row],[Numatomos išlaidos]]=\"\",Mėnesio_išlaidų_lentelė[[#This Row],[Faktinės išlaidos]]=\"\"),\"\",Mėnesio_išlaidų_lentelė[[#This Row],[Numatomos išlaidos]]-Mėnesio_išlaidų_lentelė[[#This Row],[Faktinės išlaidos]])","v":{"v":10,"d":"10 EUR"}},{"$f":"Mėnesio_išlaidų_lentelė[[#This Row],[Faktinės išlaidos]]","v":40}]
[null,"Teatras","Pramogos",{"v":200,"d":"200 EUR"},{"v":150,"d":"150 EUR"},{"$f":"IF(OR(Mėnesio_išlaidų_lentelė[[#This Row],[Numatomos išlaidos]]=\"\",Mėnesio_išlaidų_lentelė[[#This Row],[Faktinės išlaidos]]=\"\"),\"\",Mėnesio_išlaidų_lentelė[[#This Row],[Numatomos išlaidos]]-Mėnesio_išlaidų_lentelė[[#This Row],[Faktinės išlaidos]])","v":{"v":50,"d":"50 EUR"}},{"$f":"Mėnesio_išlaidų_lentelė[[#This Row],[Faktinės išlaidos]]","v":{"v":150,"d":"$150"}}]
[null,"Filmai","Pramogos",{"v":50,"d":"50 EUR"},{"v":28,"d":"28 EUR"},{"$f":"IF(OR(Mėnesio_išlaidų_lentelė[[#This Row],[Numatomos išlaidos]]=\"\",Mėnesio_išlaidų_lentelė[[#This Row],[Faktinės išlaidos]]=\"\"),\"\",Mėnesio_išlaidų_lentelė[[#This Row],[Numatomos išlaidos]]-Mėnesio_išlaidų_lentelė[[#This Row],[Faktinės išlaidos]])","v":{"v":22,"d":"22 EUR"}},{"$f":"Mėnesio_išlaidų_lentelė[[#This Row],[Faktinės išlaidos]]","v":28}]
[null,"Muzika (CD, atsisiuntimai ir t.t.)","Pramogos",{"v":50,"d":"50 EUR"},{"v":30,"d":"30 EUR"},{"$f":"IF(OR(Mėnesio_išlaidų_lentelė[[#This Row],[Numatomos išlaidos]]=\"\",Mėnesio_išlaidų_lentelė[[#This Row],[Faktinės išlaidos]]=\"\"),\"\",Mėnesio_išlaidų_lentelė[[#This Row],[Numatomos išlaidos]]-Mėnesio_išlaidų_lentelė[[#This Row],[Faktinės išlaidos]])","v":{"v":20,"d":"20 EUR"}},{"$f":"Mėnesio_išlaidų_lentelė[[#This Row],[Faktinės išlaidos]]","v":30}]
[null,"Sporto renginiai","Pramogos",{"v":0,"d":"0 EUR"},{"v":40,"d":"40 EUR"},{"$f":"IF(OR(Mėnesio_išlaidų_lentelė[[#This Row],[Numatomos išlaidos]]=\"\",Mėnesio_išlaidų_lentelė[[#This Row],[Faktinės išlaidos]]=\"\"),\"\",Mėnesio_išlaidų_lentelė[[#This Row],[Numatomos išlaidos]]-Mėnesio_išlaidų_lentelė[[#This Row],[Faktinės išlaidos]])","v":{"v":-40,"d":"-40 EUR"}},{"$f":"Mėnesio_išlaidų_lentelė[[#This Row],[Faktinės išlaidos]]","v":40}]
[null,"Vaizdo įrašai / DVD (įsigijimas)","Pramogos",{"v":20,"d":"20 EUR"},{"v":50,"d":"50 EUR"},{"$f":"IF(OR(Mėnesio_išlaidų_lentelė[[#This Row],[Numatomos išlaidos]]=\"\",Mėnesio_išlaidų_lentelė[[#This Row],[Faktinės išlaidos]]=\"\"),\"\",Mėnesio_išlaidų_lentelė[[#This Row],[Numatomos išlaidos]]-Mėnesio_išlaidų_lentelė[[#This Row],[Faktinės išlaidos]])","v":{"v":-30,"d":"-30 EUR"}},{"$f":"Mėnesio_išlaidų_lentelė[[#This Row],[Faktinės išlaidos]]","v":50}]
[null,"Vaizdo įrašai / DVD (nuoma)","Pramogos",{"v":30,"d":"30 EUR"},{"v":20,"d":"20 EUR"},{"$f":"IF(OR(Mėnesio_išlaidų_lentelė[[#This Row],[Numatomos išlaidos]]=\"\",Mėnesio_išlaidų_lentelė[[#This Row],[Faktinės išlaidos]]=\"\"),\"\",Mėnesio_išlaidų_lentelė[[#This Row],[Numatomos išlaidos]]-Mėnesio_išlaidų_lentelė[[#This Row],[Faktinės išlaidos]])","v":{"v":10,"d":"10 EUR"}},{"$f":"Mėnesio_išlaidų_lentelė[[#This Row],[Faktinės išlaidos]]","v":20}]
[null,"Restoranai","Maistas",{"v":1000,"d":"1,000 EUR"},{"v":1200,"d":"1,200 EUR"},{"$f":"IF(OR(Mėnesio_išlaidų_lentelė[[#This Row],[Numatomos išlaidos]]=\"\",Mėnesio_išlaidų_lentelė[[#This Row],[Faktinės išlaidos]]=\"\"),\"\",Mėnesio_išlaidų_lentelė[[#This Row],[Numatomos išlaidos]]-Mėnesio_išlaidų_lentelė[[#This Row],[Faktinės išlaidos]])","v":{"v":-200,"d":"-200 EUR"}},{"$f":"Mėnesio_išlaidų_lentelė[[#This Row],[Faktinės išlaidos]]","v":1200}]
[null,"Maisto prekės","Maistas",{"v":100,"d":"100 EUR"},{"v":120,"d":"120 EUR"},{"$f":"IF(OR(Mėnesio_išlaidų_lentelė[[#This Row],[Numatomos išlaidos]]=\"\",Mėnesio_išlaidų_lentelė[[#This Row],[Faktinės išlaidos]]=\"\"),\"\",Mėnesio_išlaidų_lentelė[[#This Row],[Numatomos išlaidos]]-Mėnesio_išlaidų_lentelė[[#This Row],[Faktinės išlaidos]])","v":{"v":-20,"d":"-20 EUR"}},{"$f":"Mėnesio_išlaidų_lentelė[[#This Row],[Faktinės išlaidos]]","v":120}]
[null,"1 labdara","Dovanos ir labdara",{"v":75,"d":"75 EUR"},{"v":100,"d":"100 EUR"},{"$f":"IF(OR(Mėnesio_išlaidų_lentelė[[#This Row],[Numatomos išlaidos]]=\"\",Mėnesio_išlaidų_lentelė[[#This Row],[Faktinės išlaidos]]=\"\"),\"\",Mėnesio_išlaidų_lentelė[[#This Row],[Numatomos išlaidos]]-Mėnesio_išlaidų_lentelė[[#This Row],[Faktinės išlaidos]])","v":{"v":-25,"d":"-25 EUR"}},{"$f":"Mėnesio_išlaidų_lentelė[[#This Row],[Faktinės išlaidos]]","v":100}]
[null,"2 labdara","Dovanos ir labdara",{"v":25,"d":"25 EUR"},{"v":25,"d":"25 EUR"},{"$f":"IF(OR(Mėnesio_išlaidų_lentelė[[#This Row],[Numatomos išlaidos]]=\"\",Mėnesio_išlaidų_lentelė[[#This Row],[Faktinės išlaidos]]=\"\"),\"\",Mėnesio_išlaidų_lentelė[[#This Row],[Numatomos išlaidos]]-Mėnesio_išlaidų_lentelė[[#This Row],[Faktinės išlaidos]])","v":{"v":0,"d":"0 EUR"}},{"$f":"Mėnesio_išlaidų_lentelė[[#This Row],[Faktinės išlaidos]]","v":25}]
[null,"1 dovanos","Dovanos ir labdara",null,null,{"$f":"IF(OR(Mėnesio_išlaidų_lentelė[[#This Row],[Numatomos išlaidos]]=\"\",Mėnesio_išlaidų_lentelė[[#This Row],[Faktinės išlaidos]]=\"\"),\"\",Mėnesio_išlaidų_lentelė[[#This Row],[Numatomos išlaidos]]-Mėnesio_išlaidų_lentelė[[#This Row],[Faktinės išlaidos]])","v":""},{"$f":"Mėnesio_išlaidų_lentelė[[#This Row],[Faktinės išlaidos]]","v":0}]
[null,"2 dovanos","Dovanos ir labdara",null,null,{"$f":"IF(OR(Mėnesio_išlaidų_lentelė[[#This Row],[Numatomos išlaidos]]=\"\",Mėnesio_išlaidų_lentelė[[#This Row],[Faktinės išlaidos]]=\"\"),\"\",Mėnesio_išlaidų_lentelė[[#This Row],[Numatomos išlaidos]]-Mėnesio_išlaidų_lentelė[[#This Row],[Faktinės išlaidos]])","v":""},{"$f":"Mėnesio_išlaidų_lentelė[[#This Row],[Faktinės išlaidos]]","v":0}]
[null,"Televizija","Būstas",{"v":100,"d":"100 EUR"},{"v":100,"d":"100 EUR"},{"$f":"IF(OR(Mėnesio_išlaidų_lentelė[[#This Row],[Numatomos išlaidos]]=\"\",Mėnesio_išlaidų_lentelė[[#This Row],[Faktinės išlaidos]]=\"\"),\"\",Mėnesio_išlaidų_lentelė[[#This Row],[Numatomos išlaidos]]-Mėnesio_išlaidų_lentelė[[#This Row],[Faktinės išlaidos]])","v":{"v":0,"d":"0 EUR"}},{"$f":"Mėnesio_išlaidų_lentelė[[#This Row],[Faktinės išlaidos]]","v":100}]
[null,"Elektra","Būstas",{"v":45,"d":"45 EUR"},{"v":50,"d":"50 EUR"},{"$f":"IF(OR(Mėnesio_išlaidų_lentelė[[#This Row],[Numatomos išlaidos]]=\"\",Mėnesio_išlaidų_lentelė[[#This Row],[Faktinės išlaidos]]=\"\"),\"\",Mėnesio_išlaidų_lentelė[[#This Row],[Numatomos išlaidos]]-Mėnesio_išlaidų_lentelė[[#This Row],[Faktinės išlaidos]])","v":{"v":-5,"d":"-5 EUR"}},{"$f":"Mėnesio_išlaidų_lentelė[[#This Row],[Faktinės išlaidos]]","v":50}]
[null,"Degalai","Būstas",{"v":300,"d":"300 EUR"},{"v":400,"d":"400 EUR"},{"$f":"IF(OR(Mėnesio_išlaidų_lentelė[[#This Row],[Numatomos išlaidos]]=\"\",Mėnesio_išlaidų_lentelė[[#This Row],[Faktinės išlaidos]]=\"\"),\"\",Mėnesio_išlaidų_lentelė[[#This Row],[Numatomos išlaidos]]-Mėnesio_išlaidų_lentelė[[#This Row],[Faktinės išlaidos]])","v":{"v":-100,"d":"-100 EUR"}},{"$f":"Mėnesio_išlaidų_lentelė[[#This Row],[Faktinės išlaidos]]","v":400}]
[null,"Namų valymo paslaugos","Būstas",{"v":200,"d":"200 EUR"},null,{"$f":"IF(OR(Mėnesio_išlaidų_lentelė[[#This Row],[Numatomos išlaidos]]=\"\",Mėnesio_išlaidų_lentelė[[#This Row],[Faktinės išlaidos]]=\"\"),\"\",Mėnesio_išlaidų_lentelė[[#This Row],[Numatomos išlaidos]]-Mėnesio_išlaidų_lentelė[[#This Row],[Faktinės išlaidos]])","v":""},{"$f":"Mėnesio_išlaidų_lentelė[[#This Row],[Faktinės išlaidos]]","v":0}]
[null,"Priežiūra","Būstas",{"v":200,"d":"200 EUR"},{"v":150,"d":"150 EUR"},{"$f":"IF(OR(Mėnesio_išlaidų_lentelė[[#This Row],[Numatomos išlaidos]]=\"\",Mėnesio_išlaidų_lentelė[[#This Row],[Faktinės išlaidos]]=\"\"),\"\",Mėnesio_išlaidų_lentelė[[#This Row],[Numatomos išlaidos]]-Mėnesio_išlaidų_lentelė[[#This Row],[Faktinės išlaidos]])","v":{"v":50,"d":"50 EUR"}},{"$f":"Mėnesio_išlaidų_lentelė[[#This Row],[Faktinės išlaidos]]","v":150}]
[null,"Būsto paskola arba nuoma","Būstas",{"v":1700,"d":"1,700 EUR"},{"v":1700,"d":"1,700 EUR"},{"$f":"IF(OR(Mėnesio_išlaidų_lentelė[[#This Row],[Numatomos išlaidos]]=\"\",Mėnesio_išlaidų_lentelė[[#This Row],[Faktinės išlaidos]]=\"\"),\"\",Mėnesio_išlaidų_lentelė[[#This Row],[Numatomos išlaidos]]-Mėnesio_išlaidų_lentelė[[#This Row],[Faktinės išlaidos]])","v":{"v":0,"d":"0 EUR"}},{"$f":"Mėnesio_išlaidų_lentelė[[#This Row],[Faktinės išlaidos]]","v":1700}]
[null,"Gamtinės dujos / alyva","Būstas",null,null,{"$f":"IF(OR(Mėnesio_išlaidų_lentelė[[#This Row],[Numatomos išlaidos]]=\"\",Mėnesio_išlaidų_lentelė[[#This Row],[Faktinės išlaidos]]=\"\"),\"\",Mėnesio_išlaidų_lentelė[[#This Row],[Numatomos išlaidos]]-Mėnesio_išlaidų_lentelė[[#This Row],[Faktinės išlaidos]])","v":""},{"$f":"Mėnesio_išlaidų_lentelė[[#This Row],[Faktinės išlaidos]]","v":0}]
[null,"Interneto paslaugos","Būstas",{"v":100,"d":"100 EUR"},{"v":100,"d":"100 EUR"},{"$f":"IF(OR(Mėnesio_išlaidų_lentelė[[#This Row],[Numatomos išlaidos]]=\"\",Mėnesio_išlaidų_lentelė[[#This Row],[Faktinės išlaidos]]=\"\"),\"\",Mėnesio_išlaidų_lentelė[[#This Row],[Numatomos išlaidos]]-Mėnesio_išlaidų_lentelė[[#This Row],[Faktinės išlaidos]])","v":{"v":0,"d":"0 EUR"}},{"$f":"Mėnesio_išlaidų_lentelė[[#This Row],[Faktinės išlaidos]]","v":100}]
[null,"Telefonas (mobilusis)","Būstas",{"v":60,"d":"60 EUR"},{"v":60,"d":"60 EUR"},{"$f":"IF(OR(Mėnesio_išlaidų_lentelė[[#This Row],[Numatomos išlaidos]]=\"\",Mėnesio_išlaidų_lentelė[[#This Row],[Faktinės išlaidos]]=\"\"),\"\",Mėnesio_išlaidų_lentelė[[#This Row],[Numatomos išlaidos]]-Mėnesio_išlaidų_lentelė[[#This Row],[Faktinės išlaidos]])","v":{"v":0,"d":"0 EUR"}},{"$f":"Mėnesio_išlaidų_lentelė[[#This Row],[Faktinės išlaidos]]","v":60}]
[null,"Telefonas (namų)","Būstas",{"v":35,"d":"35 EUR"},{"v":39,"d":"39 EUR"},{"$f":"IF(OR(Mėnesio_išlaidų_lentelė[[#This Row],[Numatomos išlaidos]]=\"\",Mėnesio_išlaidų_lentelė[[#This Row],[Faktinės išlaidos]]=\"\"),\"\",Mėnesio_išlaidų_lentelė[[#This Row],[Numatomos išlaidos]]-Mėnesio_išlaidų_lentelė[[#This Row],[Faktinės išlaidos]])","v":{"v":-4,"d":"-4 EUR"}},{"$f":"Mėnesio_išlaidų_lentelė[[#This Row],[Faktinės išlaidos]]","v":39}]
[null,"Atsargos","Būstas",{"v":40,"d":"40 EUR"},{"v":55,"d":"55 EUR"},{"$f":"IF(OR(Mėnesio_išlaidų_lentelė[[#This Row],[Numatomos išlaidos]]=\"\",Mėnesio_išlaidų_lentelė[[#This Row],[Faktinės išlaidos]]=\"\"),\"\",Mėnesio_išlaidų_lentelė[[#This Row],[Numatomos išlaidos]]-Mėnesio_išlaidų_lentelė[[#This Row],[Faktinės išlaidos]])","v":{"v":-15,"d":"-15 EUR"}},{"$f":"Mėnesio_išlaidų_lentelė[[#This Row],[Faktinės išlaidos]]","v":55}]
[null,"Atliekų šalinimas ir perdirbimas","Būstas",{"v":25,"d":"25 EUR"},{"v":22,"d":"22 EUR"},{"$f":"IF(OR(Mėnesio_išlaidų_lentelė[[#This Row],[Numatomos išlaidos]]=\"\",Mėnesio_išlaidų_lentelė[[#This Row],[Faktinės išlaidos]]=\"\"),\"\",Mėnesio_išlaidų_lentelė[[#This Row],[Numatomos išlaidos]]-Mėnesio_išlaidų_lentelė[[#This Row],[Faktinės išlaidos]])","v":{"v":3,"d":"3 EUR"}},{"$f":"Mėnesio_išlaidų_lentelė[[#This Row],[Faktinės išlaidos]]","v":22}]
[null,"Vanduo ir kanalizacija","Būstas",{"v":25,"d":"25 EUR"},{"v":26,"d":"26 EUR"},{"$f":"IF(OR(Mėnesio_išlaidų_lentelė[[#This Row],[Numatomos išlaidos]]=\"\",Mėnesio_išlaidų_lentelė[[#This Row],[Faktinės išlaidos]]=\"\"),\"\",Mėnesio_išlaidų_lentelė[[#This Row],[Numatomos išlaidos]]-Mėnesio_išlaidų_lentelė[[#This Row],[Faktinės išlaidos]])","v":{"v":-1,"d":"-1 EUR"}},{"$f":"Mėnesio_išlaidų_lentelė[[#This Row],[Faktinės išlaidos]]","v":26}]
[null,"Sveikatos","Draudimas",{"v":400,"d":"400 EUR"},{"v":400,"d":"400 EUR"},{"$f":"IF(OR(Mėnesio_išlaidų_lentelė[[#This Row],[Numatomos išlaidos]]=\"\",Mėnesio_išlaidų_lentelė[[#This Row],[Faktinės išlaidos]]=\"\"),\"\",Mėnesio_išlaidų_lentelė[[#This Row],[Numatomos išlaidos]]-Mėnesio_išlaidų_lentelė[[#This Row],[Faktinės išlaidos]])","v":{"v":0,"d":"0 EUR"}},{"$f":"Mėnesio_išlaidų_lentelė[[#This Row],[Faktinės išlaidos]]","v":400}]
[null,"Namų","Draudimas",{"v":400,"d":"400 EUR"},{"v":400,"d":"400 EUR"},{"$f":"IF(OR(Mėnesio_išlaidų_lentelė[[#This Row],[Numatomos išlaidos]]=\"\",Mėnesio_išlaidų_lentelė[[#This Row],[Faktinės išlaidos]]=\"\"),\"\",Mėnesio_išlaidų_lentelė[[#This Row],[Numatomos išlaidos]]-Mėnesio_išlaidų_lentelė[[#This Row],[Faktinės išlaidos]])","v":{"v":0,"d":"0 EUR"}},{"$f":"Mėnesio_išlaidų_lentelė[[#This Row],[Faktinės išlaidos]]","v":400}]
[null,"Gyvybės","Draudimas",{"v":100,"d":"100 EUR"},{"v":100,"d":"100 EUR"},{"$f":"IF(OR(Mėnesio_išlaidų_lentelė[[#This Row],[Numatomos išlaidos]]=\"\",Mėnesio_išlaidų_lentelė[[#This Row],[Faktinės išlaidos]]=\"\"),\"\",Mėnesio_išlaidų_lentelė[[#This Row],[Numatomos išlaidos]]-Mėnesio_išlaidų_lentelė[[#This Row],[Faktinės išlaidos]])","v":{"v":0,"d":"0 EUR"}},{"$f":"Mėnesio_išlaidų_lentelė[[#This Row],[Faktinės išlaidos]]","v":100}]
[null,"1 kredito kortelė","Paskolos",{"v":200,"d":"200 EUR"},{"v":200,"d":"200 EUR"},{"$f":"IF(OR(Mėnesio_išlaidų_lentelė[[#This Row],[Numatomos išlaidos]]=\"\",Mėnesio_išlaidų_lentelė[[#This Row],[Faktinės išlaidos]]=\"\"),\"\",Mėnesio_išlaidų_lentelė[[#This Row],[Numatomos išlaidos]]-Mėnesio_išlaidų_lentelė[[#This Row],[Faktinės išlaidos]])","v":{"v":0,"d":"0 EUR"}},{"$f":"Mėnesio_išlaidų_lentelė[[#This Row],[Faktinės išlaidos]]","v":200}]
[null,"2 kredito kortelė","Paskolos",null,null,{"$f":"IF(OR(Mėnesio_išlaidų_lentelė[[#This Row],[Numatomos išlaidos]]=\"\",Mėnesio_išlaidų_lentelė[[#This Row],[Faktinės išlaidos]]=\"\"),\"\",Mėnesio_išlaidų_lentelė[[#This Row],[Numatomos išlaidos]]-Mėnesio_išlaidų_lentelė[[#This Row],[Faktinės išlaidos]])","v":""},{"$f":"Mėnesio_išlaidų_lentelė[[#This Row],[Faktinės išlaidos]]","v":0}]
[null,"3 kredito kortelė","Paskolos",null,null,{"$f":"IF(OR(Mėnesio_išlaidų_lentelė[[#This Row],[Numatomos išlaidos]]=\"\",Mėnesio_išlaidų_lentelė[[#This Row],[Faktinės išlaidos]]=\"\"),\"\",Mėnesio_išlaidų_lentelė[[#This Row],[Numatomos išlaidos]]-Mėnesio_išlaidų_lentelė[[#This Row],[Faktinės išlaidos]])","v":""},{"$f":"Mėnesio_išlaidų_lentelė[[#This Row],[Faktinės išlaidos]]","v":0}]
[null,"Asmeninė","Paskolos",null,null,{"$f":"IF(OR(Mėnesio_išlaidų_lentelė[[#This Row],[Numatomos išlaidos]]=\"\",Mėnesio_išlaidų_lentelė[[#This Row],[Faktinės išlaidos]]=\"\"),\"\",Mėnesio_išlaidų_lentelė[[#This Row],[Numatomos išlaidos]]-Mėnesio_išlaidų_lentelė[[#This Row],[Faktinės išlaidos]])","v":""},{"$f":"Mėnesio_išlaidų_lentelė[[#This Row],[Faktinės išlaidos]]","v":0}]
[null,"Studento","Paskolos",null,null,{"$f":"IF(OR(Mėnesio_išlaidų_lentelė[[#This Row],[Numatomos išlaidos]]=\"\",Mėnesio_išlaidų_lentelė[[#This Row],[Faktinės išlaidos]]=\"\"),\"\",Mėnesio_išlaidų_lentelė[[#This Row],[Numatomos išlaidos]]-Mėnesio_išlaidų_lentelė[[#This Row],[Faktinės išlaidos]])","v":""},{"$f":"Mėnesio_išlaidų_lentelė[[#This Row],[Faktinės išlaidos]]","v":0}]
[null,"Drabužiai","Asmens priežiūra",{"v":150,"d":"150 EUR"},{"v":140,"d":"140 EUR"},{"$f":"IF(OR(Mėnesio_išlaidų_lentelė[[#This Row],[Numatomos išlaidos]]=\"\",Mėnesio_išlaidų_lentelė[[#This Row],[Faktinės išlaidos]]=\"\"),\"\",Mėnesio_išlaidų_lentelė[[#This Row],[Numatomos išlaidos]]-Mėnesio_išlaidų_lentelė[[#This Row],[Faktinės išlaidos]])","v":{"v":10,"d":"10 EUR"}},{"$f":"Mėnesio_išlaidų_lentelė[[#This Row],[Faktinės išlaidos]]","v":140}]
[null,"Drabužių valykla","Asmens priežiūra",null,null,{"$f":"IF(OR(Mėnesio_išlaidų_lentelė[[#This Row],[Numatomos išlaidos]]=\"\",Mėnesio_išlaidų_lentelė[[#This Row],[Faktinės išlaidos]]=\"\"),\"\",Mėnesio_išlaidų_lentelė[[#This Row],[Numatomos išlaidos]]-Mėnesio_išlaidų_lentelė[[#This Row],[Faktinės išlaidos]])","v":""},{"$f":"Mėnesio_išlaidų_lentelė[[#This Row],[Faktinės išlaidos]]","v":0}]
[null,"Plaukai / nagai","Asmens priežiūra",null,null,{"$f":"IF(OR(Mėnesio_išlaidų_lentelė[[#This Row],[Numatomos išlaidos]]=\"\",Mėnesio_išlaidų_lentelė[[#This Row],[Faktinės išlaidos]]=\"\"),\"\",Mėnesio_išlaidų_lentelė[[#This Row],[Numatomos išlaidos]]-Mėnesio_išlaidų_lentelė[[#This Row],[Faktinės išlaidos]])","v":""},{"$f":"Mėnesio_išlaidų_lentelė[[#This Row],[Faktinės išlaidos]]","v":0}]
[null,"Sveikatos klubas","Asmens priežiūra",null,null,{"$f":"IF(OR(Mėnesio_išlaidų_lentelė[[#This Row],[Numatomos išlaidos]]=\"\",Mėnesio_išlaidų_lentelė[[#This Row],[Faktinės išlaidos]]=\"\"),\"\",Mėnesio_išlaidų_lentelė[[#This Row],[Numatomos išlaidos]]-Mėnesio_išlaidų_lentelė[[#This Row],[Faktinės išlaidos]])","v":""},{"$f":"Mėnesio_išlaidų_lentelė[[#This Row],[Faktinės išlaidos]]","v":0}]
[null,"Medicininės išlaidos","Asmens priežiūra",null,null,{"$f":"IF(OR(Mėnesio_išlaidų_lentelė[[#This Row],[Numatomos išlaidos]]=\"\",Mėnesio_išlaidų_lentelė[[#This Row],[Faktinės išlaidos]]=\"\"),\"\",Mėnesio_išlaidų_lentelė[[#This Row],[Numatomos išlaidos]]-Mėnesio_išlaidų_lentelė[[#This Row],[Faktinės išlaidos]])","v":""},{"$f":"Mėnesio_išlaidų_lentelė[[#This Row],[Faktinės išlaidos]]","v":0}]
[null,"Maistas","Augintiniai",{"v":150,"d":"150 EUR"},{"v":75,"d":"75 EUR"},{"$f":"IF(OR(Mėnesio_išlaidų_lentelė[[#This Row],[Numatomos išlaidos]]=\"\",Mėnesio_išlaidų_lentelė[[#This Row],[Faktinės išlaidos]]=\"\"),\"\",Mėnesio_išlaidų_lentelė[[#This Row],[Numatomos išlaidos]]-Mėnesio_išlaidų_lentelė[[#This Row],[Faktinės išlaidos]])","v":{"v":75,"d":"75 EUR"}},{"$f":"Mėnesio_išlaidų_lentelė[[#This Row],[Faktinės išlaidos]]","v":75}]
[null,"Priežiūra","Augintiniai",{"v":20,"d":"20 EUR"},{"v":25,"d":"25 EUR"},{"$f":"IF(OR(Mėnesio_išlaidų_lentelė[[#This Row],[Numatomos išlaidos]]=\"\",Mėnesio_išlaidų_lentelė[[#This Row],[Faktinės išlaidos]]=\"\"),\"\",Mėnesio_išlaidų_lentelė[[#This Row],[Numatomos išlaidos]]-Mėnesio_išlaidų_lentelė[[#This Row],[Faktinės išlaidos]])","v":{"v":-5,"d":"-5 EUR"}},{"$f":"Mėnesio_išlaidų_lentelė[[#This Row],[Faktinės išlaidos]]","v":25}]
[null,"Medicininės išlaidos","Augintiniai",null,null,{"$f":"IF(OR(Mėnesio_išlaidų_lentelė[[#This Row],[Numatomos išlaidos]]=\"\",Mėnesio_išlaidų_lentelė[[#This Row],[Faktinės išlaidos]]=\"\"),\"\",Mėnesio_išlaidų_lentelė[[#This Row],[Numatomos išlaidos]]-Mėnesio_išlaidų_lentelė[[#This Row],[Faktinės išlaidos]])","v":""},{"$f":"Mėnesio_išlaidų_lentelė[[#This Row],[Faktinės išlaidos]]","v":0}]
[null,"Žaislai","Augintiniai",null,null,{"$f":"IF(OR(Mėnesio_išlaidų_lentelė[[#This Row],[Numatomos išlaidos]]=\"\",Mėnesio_išlaidų_lentelė[[#This Row],[Faktinės išlaidos]]=\"\"),\"\",Mėnesio_išlaidų_lentelė[[#This Row],[Numatomos išlaidos]]-Mėnesio_išlaidų_lentelė[[#This Row],[Faktinės išlaidos]])","v":""},{"$f":"Mėnesio_išlaidų_lentelė[[#This Row],[Faktinės išlaidos]]","v":0}]
[null,"Investicijų sąskaita","Santaupos",{"v":200,"d":"200 EUR"},{"v":200,"d":"200 EUR"},{"$f":"IF(OR(Mėnesio_išlaidų_lentelė[[#This Row],[Numatomos išlaidos]]=\"\",Mėnesio_išlaidų_lentelė[[#This Row],[Faktinės išlaidos]]=\"\"),\"\",Mėnesio_išlaidų_lentelė[[#This Row],[Numatomos išlaidos]]-Mėnesio_išlaidų_lentelė[[#This Row],[Faktinės išlaidos]])","v":{"v":0,"d":"0 EUR"}},{"$f":"Mėnesio_išlaidų_lentelė[[#This Row],[Faktinės išlaidos]]","v":200}]
[null,"Pensijos sąskaita","Santaupos",null,null,{"$f":"IF(OR(Mėnesio_išlaidų_lentelė[[#This Row],[Numatomos išlaidos]]=\"\",Mėnesio_išlaidų_lentelė[[#This Row],[Faktinės išlaidos]]=\"\"),\"\",Mėnesio_išlaidų_lentelė[[#This Row],[Numatomos išlaidos]]-Mėnesio_išlaidų_lentelė[[#This Row],[Faktinės išlaidos]])","v":""},{"$f":"Mėnesio_išlaidų_lentelė[[#This Row],[Faktinės išlaidos]]","v":0}]
[null,"Federaliniai","Mokesčiai",{"v":300,"d":"300 EUR"},{"v":300,"d":"300 EUR"},{"$f":"IF(OR(Mėnesio_išlaidų_lentelė[[#This Row],[Numatomos išlaidos]]=\"\",Mėnesio_išlaidų_lentelė[[#This Row],[Faktinės išlaidos]]=\"\"),\"\",Mėnesio_išlaidų_lentelė[[#This Row],[Numatomos išlaidos]]-Mėnesio_išlaidų_lentelė[[#This Row],[Faktinės išlaidos]])","v":{"v":0,"d":"0 EUR"}},{"$f":"Mėnesio_išlaidų_lentelė[[#This Row],[Faktinės išlaidos]]","v":300}]
[null,"Vietos","Mokesčiai",null,null,{"$f":"IF(OR(Mėnesio_išlaidų_lentelė[[#This Row],[Numatomos išlaidos]]=\"\",Mėnesio_išlaidų_lentelė[[#This Row],[Faktinės išlaidos]]=\"\"),\"\",Mėnesio_išlaidų_lentelė[[#This Row],[Numatomos išlaidos]]-Mėnesio_išlaidų_lentelė[[#This Row],[Faktinės išlaidos]])","v":""},{"$f":"Mėnesio_išlaidų_lentelė[[#This Row],[Faktinės išlaidos]]","v":0}]
[null,"Šalies","Mokesčiai",null,null,{"$f":"IF(OR(Mėnesio_išlaidų_lentelė[[#This Row],[Numatomos išlaidos]]=\"\",Mėnesio_išlaidų_lentelė[[#This Row],[Faktinės išlaidos]]=\"\"),\"\",Mėnesio_išlaidų_lentelė[[#This Row],[Numatomos išlaidos]]-Mėnesio_išlaidų_lentelė[[#This Row],[Faktinės išlaidos]])","v":""},{"$f":"Mėnesio_išlaidų_lentelė[[#This Row],[Faktinės išlaidos]]","v":0}]
[null,"Autobuso / taksi mokestis","Transportas",{"v":100,"d":"100 EUR"},{"v":150,"d":"150 EUR"},{"$f":"IF(OR(Mėnesio_išlaidų_lentelė[[#This Row],[Numatomos išlaidos]]=\"\",Mėnesio_išlaidų_lentelė[[#This Row],[Faktinės išlaidos]]=\"\"),\"\",Mėnesio_išlaidų_lentelė[[#This Row],[Numatomos išlaidos]]-Mėnesio_išlaidų_lentelė[[#This Row],[Faktinės išlaidos]])","v":{"v":-50,"d":"-50 EUR"}},{"$f":"Mėnesio_išlaidų_lentelė[[#This Row],[Faktinės išlaidos]]","v":150}]
[null,"Kuras","Transportas",{"v":450,"d":"450 EUR"},{"v":400,"d":"400 EUR"},{"$f":"IF(OR(Mėnesio_išlaidų_lentelė[[#This Row],[Numatomos išlaidos]]=\"\",Mėnesio_išlaidų_lentelė[[#This Row],[Faktinės išlaidos]]=\"\"),\"\",Mėnesio_išlaidų_lentelė[[#This Row],[Numatomos išlaidos]]-Mėnesio_išlaidų_lentelė[[#This Row],[Faktinės išlaidos]])","v":{"v":50,"d":"50 EUR"}},{"$f":"Mėnesio_išlaidų_lentelė[[#This Row],[Faktinės išlaidos]]","v":400}]
[null,"Draudimas","Transportas",{"v":300,"d":"300 EUR"},{"v":300,"d":"300 EUR"},{"$f":"IF(OR(Mėnesio_išlaidų_lentelė[[#This Row],[Numatomos išlaidos]]=\"\",Mėnesio_išlaidų_lentelė[[#This Row],[Faktinės išlaidos]]=\"\"),\"\",Mėnesio_išlaidų_lentelė[[#This Row],[Numatomos išlaidos]]-Mėnesio_išlaidų_lentelė[[#This Row],[Faktinės išlaidos]])","v":{"v":0,"d":"0 EUR"}},{"$f":"Mėnesio_išlaidų_lentelė[[#This Row],[Faktinės išlaidos]]","v":300}]
[null,"Licencijavimas ","Transportas",{"v":25,"d":"25 EUR"},{"v":25,"d":"25 EUR"},{"$f":"IF(OR(Mėnesio_išlaidų_lentelė[[#This Row],[Numatomos išlaidos]]=\"\",Mėnesio_išlaidų_lentelė[[#This Row],[Faktinės išlaidos]]=\"\"),\"\",Mėnesio_išlaidų_lentelė[[#This Row],[Numatomos išlaidos]]-Mėnesio_išlaidų_lentelė[[#This Row],[Faktinės išlaidos]])","v":{"v":0,"d":"0 EUR"}},{"$f":"Mėnesio_išlaidų_lentelė[[#This Row],[Faktinės išlaidos]]","v":25}]
[null,"Priežiūra","Transportas",{"v":100,"d":"100 EUR"},{"v":50,"d":"50 EUR"},{"$f":"IF(OR(Mėnesio_išlaidų_lentelė[[#This Row],[Numatomos išlaidos]]=\"\",Mėnesio_išlaidų_lentelė[[#This Row],[Faktinės išlaidos]]=\"\"),\"\",Mėnesio_išlaidų_lentelė[[#This Row],[Numatomos išlaidos]]-Mėnesio_išlaidų_lentelė[[#This Row],[Faktinės išlaidos]])","v":{"v":50,"d":"50 EUR"}},{"$f":"Mėnesio_išlaidų_lentelė[[#This Row],[Faktinės išlaidos]]","v":50}]
[null,"Mokesčiai už automobilių stovėjimo aikštelę","Transportas",null,null,{"$f":"IF(OR(Mėnesio_išlaidų_lentelė[[#This Row],[Numatomos išlaidos]]=\"\",Mėnesio_išlaidų_lentelė[[#This Row],[Faktinės išlaidos]]=\"\"),\"\",Mėnesio_išlaidų_lentelė[[#This Row],[Numatomos išlaidos]]-Mėnesio_išlaidų_lentelė[[#This Row],[Faktinės išlaidos]])","v":""},{"$f":"Mėnesio_išlaidų_lentelė[[#This Row],[Faktinės išlaidos]]","v":0}]
[null,"Įmoka už automobilį","Transportas",{"v":450,"d":"450 EUR"},{"v":450,"d":"450 EUR"},{"$f":"IF(OR(Mėnesio_išlaidų_lentelė[[#This Row],[Numatomos išlaidos]]=\"\",Mėnesio_išlaidų_lentelė[[#This Row],[Faktinės išlaidos]]=\"\"),\"\",Mėnesio_išlaidų_lentelė[[#This Row],[Numatomos išlaidos]]-Mėnesio_išlaidų_lentelė[[#This Row],[Faktinės išlaidos]])","v":{"v":0,"d":"0 EUR"}},{"$f":"Mėnesio_išlaidų_lentelė[[#This Row],[Faktinės išlaidos]]","v":450}]

{"sheet":"Papildomi duomenys","index":3,"n_rows":17,"n_cols":6,"rows_kept":17}
[{"$nulls":5}," "]
[null,"Biudžeto diagramos „PivotTable“",null,null,"Kategorijų sąrašas"]
[]
[null,"Kategorijos","Kaina ",null,"Norėdami įtraukti kategoriją, įveskite žemiau"]
[null,"Augintiniai",{"v":100,"d":"100 EUR"},null,"Vaikai"]
[null,"Dovanos ir labdara",{"v":125,"d":"125 EUR"},null,"Pramogos"]
[null,"Asmens priežiūra",{"v":140,"d":"140 EUR"},null,"Maistas"]
[null,"Vaikai",{"v":140,"d":"140 EUR"},null,"Dovanos ir labdara"]
[null,"Santaupos",{"v":200,"d":"200 EUR"},null,"Būstas"]
[null,"Paskolos",{"v":200,"d":"200 EUR"},null,"Draudimas"]
[null,"Mokesčiai",{"v":300,"d":"300 EUR"},null,"Paskolos"]
[null,"Pramogos",{"v":358,"d":"358 EUR"},null,"Asmens priežiūra"]
[null,"Draudimas",{"v":900,"d":"900 EUR"},null,"Augintiniai"]
[null,"Maistas",{"v":1320,"d":"1,320 EUR"},null,"Santaupos"]
[null,"Transportas",{"v":1375,"d":"1,375 EUR"},null,"Mokesčiai"]
[null,"Būstas",{"v":2702,"d":"2,702 EUR"},null,"Transportas"]
[null,"Grand Total",{"v":7860,"d":"7,860 EUR"}]